Cogmind - Beta 10.2 @@@ ROGUE MODE // 2020.12.27 @ 09:02:34 Player: OldPopsy Result: Destroyed by G-34 Mercenary with Small Laser Performance ------------- Evolutions (1) 500 Regions Visited (2) 400 Robots Destroyed (19) 95 Value Destroyed (331) 331 Prototype IDs (0) 0 Alien Tech Used (0) 0 Bonus (0) 0 TOTAL SCORE: 1326 Bonus ------- None Cogmind --------- Core Integrity 0/400 Matter 273/300 Energy 73/100 System Corruption 9% Temperature Cool (6) Movement Core (550) Ox10 Location -9/Materials Parts ------- > --- POWER (2) -------- (None) > --- PROPULSION (2) --- (None) > --- UTILITY (3) ------ High-capacity Storage Unit > --- WEAPON (2) ------- (None) > --- INVENTORY (12) --- Medium Matter Pod (0) Signal Interpreter Tractor Beam Peak State ------------ > --- POWER ------------ (None) > --- PROPULSION ------- Aluminum Leg > --- UTILITY ---------- Small Storage Unit Terrain Scanner Core Shielding > --- WEAPON ----------- Autogun Rocket Launcher > --- INVENTORY -------- Medium Matter Pod Signal Interpreter Grenade Launcher [Rating: 8] Favorites ----------- Power Ion Engine Engine Ion Engine Propulsion Aluminum Leg Leg Aluminum Leg Wheel Wheel Utility Small Storage Unit Device Terrain Scanner Storage Small Storage Unit Protection Core Shielding Weapon EM Pulse Gun Energy Gun EM Pulse Gun Ballistic Gun Autogun Launcher Grenade Launcher Build | -11 -10 -9 ------- Run | Scr Mat Mat Slots Evolved 2 | . . 2 Power 1 | . . 1 Propulsion . | . . . Utility 1 | . . 1 Weapon . | . . . Parts Attached 20 | 8 3 9 Power 4 | 2 . 2 Engine 4 | 2 . 2 Core . | . . . Reactor . | . . . Propulsion 4 | 2 . 2 Treads . | . . . Leg 2 | 2 . . Wheel 2 | . . 2 Hover . | . . . Flight . | . . . Utility 4 | 1 1 2 Device 1 | . . 1 Storage 2 | 1 . 1 Processor . | . . . Hackware . | . . . Protection 1 | . 1 . Artifact . | . . . Weapon 8 | 3 2 3 Energy Gun 4 | 3 1 . Energy Cannon . | . . . Ballistic Gun 2 | . 1 1 Ballistic Cannon . | . . . Launcher 2 | . . 2 Special Weapon . | . . . Impact Weapon . | . . . Slashing Weapon . | . . . Piercing Weapon . | . . . Special Melee Weapon . | . . . Unidentified Prototypes . | . . . Parts Lost 13 | . 3 10 Power 3 | . 1 2 Propulsion 4 | . . 4 Utility 1 | . . 1 Weapon 5 | . 2 3 Highest Loss Streak 4 | . 2 4 Average Slot Usage (%) 60 | . 83 51 Engine 4 | . 12 . Leg 12 | . 28 5 Device 4 | . . 6 Storage 11 | . 14 11 Protection 9 | . 7 9 Energy Gun 5 | . 17 . Ballistic Gun 8 | . 2 11 Launcher 4 | . . 6 Naked Turns . | . . . Heaviest Build 40 | 13 13 40 Greatest Support 20 | 20 20 20 Greatest Overweight (x) 13 | 4 . 13 Average Overweight (x) 1 | . . 2 Largest Inventory Capacity 12 | 6 6 12 Average Capacity 7 | 5 6 8 Most Carried 5 | 3 5 5 Average Carried 2 | . 2 2 Final Capacity 12 | 6 6 12 Final Carried 3 | 1 3 3 Class Distribution -------------------- 100% | Mutant Dominant Class ---------------- Mutant | -10/Materials Mutant | -9/Materials Resources | -11 -10 -9 ----------- Run | Scr Mat Mat Matter Collected 514 | 194 92 228 Remotely . | . . . Salvage Created 412 | . 92 320 Parts 33 | . 6 27 Haulers Intercepted 1 | . . 1 Recyclers Shooed 1 | . . 1 Parts Field Recycled . | . . . Retrieved Matter . | . . . Parts Self-Destructed . | . . . Prevented . | . . . Kills | -11 -10 -9 ------- Run | Scr Mat Mat Combat Hostiles Destroyed 10 | . 4 6 Guns 5 | . 4 1 AOE 5 | . . 5 Classes Destroyed 8 | . 2 6 Worker 3 | . . 3 Builder 3 | . . 3 Hauler 1 | . . 1 Recycler 1 | . . 1 Watcher 1 | . . 1 Swarmer 3 | . 3 . Grunt 6 | . 1 5 Sentry 1 | . . 1 Best Kill Streak 5 | . 2 5 Combat Bots Only 2 | . 2 2 Max Kills in Single Turn 3 | . 1 3 Gunslinging . | . . . Exploded 1 | . . 1 Melee . | . . . Uniques/NPCs Destroyed . | . . . Combat | -11 -10 -9 -------- Run | Scr Mat Mat Damage Taken 1450 | . 514 936 Core 498 | . 96 402 Absorbed by Shields . | . . . Core Remaining (%) 80 | 100 61 . Volleys Fired 48 | . 23 25 Largest 2 | . 2 2 Hottest 90 | . 90 56 Shots Fired 87 | . 38 49 Gun 72 | . 38 34 Cannon . | . . . Launcher 15 | . . 15 Special . | . . . Kinetic 41 | . 7 34 Thermal 15 | . 15 . Explosive 15 | . . 15 Electromagnetic 16 | . 16 . Robot Hit Streak 6 | . 4 6 Robot Miss Streak 6 | . 6 3 Penetration Max . | . . . Secondary Targets 1 | . 1 . Max Gunslinging Chain 1 | . 1 . Shots Hit Robots 43 | . 17 26 Core Hits 36 | . 6 30 Critical Hits . | . . . Critical Kills . | . . . Critical Parts Destroyed . | . . . Melee Attacks . | . . . Impact . | . . . Slashing . | . . . Piercing . | . . . Sneak Attacks . | . . . Combat Hostiles . | . . . Follow-up Attacks . | . . . Damage Inflicted 1449 | . 158 1291 Guns 497 | . 158 339 Cannons . | . . . Explosions 939 | . . 939 Melee . | . . . Ramming 13 | . . 13 Kinetic 372 | . 33 339 Thermal 57 | . 57 . Explosive 939 | . . 939 Electromagnetic 68 | . 68 . Impact . | . . . Slashing . | . . . Piercing . | . . . Highest Corruption 9 | . . 9 Average Corruption 7 | . . 7 Corruption Purged . | . . . Effects 4 | . . 4 Heat Flow Errors 2 | . . 2 Energy Discharges 1 | . . 1 Parts Rejected 1 | . . 1 Overload Shots . | . . . Overflow Damage 67 | . . 67 Projectiles . | . . . Explosions 67 | . . 67 Melee . | . . . Knockbacks . | . . . Impact . | . . . Kinetic . | . . . Secondary . | . . . Self-Inflicted Damage 73 | . . 73 Shots 4 | . . 4 Rammed 19 | . . 19 Targets Rammed 19 | . . 19 Kicked . | . . . Crushed . | . . . Highest Temperature 222 | . 222 157 Average Temperature 64 | . 75 35 Received Heat Transfer 585 | . 186 399 Effects 1 | . 1 . Energy Bleed 1 | . 1 . Siege Activations . | . . . Robots Corrupted . | . . . Combat Hostiles . | . . . Parts Fried . | . . . Impact Corruptions . | . . . Robots Melted . | . . . Combat Hostiles . | . . . Parts Melted . | . . . Heat Transferred 137 | . 137 . Parts Sabotaged . | . . . Parts Stolen . | . . . Parts Stripped . | . . . Power Chain Reactions . | . . . Missiles Intercepted . | . . . Alert | -11 -10 -9 ------- Run | Scr Mat Mat Peak Influence 201 | . 170 201 Initial 67 | . . 67 Average 49 | . 89 75 Maximum Alert Level 1 | . . 1 Low Security (%) 98 | 100 100 96 Level 1 1 | . . 3 Level 2 . | . . . Level 3 . | . . . Level 4 . | . . . Level 5 . | . . . High Security . | . . . Max Security . | . . . Squads Dispatched 6 | . 2 4 Investigation 2 | . 1 1 Extermination . | . . . Reinforcement 4 | . 1 3 Assault . | . . . Garrison . | . . . Intercept . | . . . Construction Impeded 1 | . . 1 Haulers Reinforced . | . . . Stealth | -11 -10 -9 --------- Run | Scr Mat Mat Distress Signals . | . . . Communications Jammed . | . . . Distress Signals . | . . . Times Spotted 25 | . 11 14 Peak Tracking Total 4 | . 3 4 Tactical Retreats 2 | . 2 . Traps | -11 -10 -9 ------- Run | Scr Mat Mat Traps Triggered 3 | . 1 2 Indirectly . | . . . Trap Hack Attempts . | . . . Triggered . | . . . Disarmed . | . . . Reprogrammed . | . . . Reused . | . . . Traps Extracted . | . . . Installed . | . . . Triggered . | . . . Machines | -11 -10 -9 ---------- Run | Scr Mat Mat Machines Disabled 1 | . . 1 Max in Single Turn 1 | . . 1 Machines Sabotaged . | . . . Garrisons Compromised . | . . . Overloaded Fab Kills . | . . . Fab Network Shutdowns . | . . . Hacking | -11 -10 -9 --------- Run | Scr Mat Mat Machines Accessed . | . . . Terminals . | . . . Fabricators . | . . . Repair Stations . | . . . Recycling Units . | . . . Scanalyzers . | . . . Garrison Access . | . . . Total Hacks . | . . . Successful . | . . . Failed . | . . . Catastrophic . | . . . Database Lockouts . | . . . Manual . | . . . Terminals . | . . . Fabricators . | . . . Repair Stations . | . . . Recycling Units . | . . . Scanalyzers . | . . . Garrison Access . | . . . Terminal Hacks . | . . . Fabricator Hacks . | . . . Repair Station Hacks . | . . . Recycling Unit Hacks . | . . . Scanalyzer . | . . . Garrison Access Hacks . | . . . Unauthorized Hacks . | . . . Terminals . | . . . Fabricators . | . . . Repair Stations . | . . . Recycling Units . | . . . Scanalyzers . | . . . Garrison Access . | . . . Data Cores Recovered . | . . . Used . | . . . Hacking Detections . | . . . Full Trace Events . | . . . Feedback Events . | . . . Feedback Blocked . | . . . Robot Schematics Acquired . | . . . Robots Built . | . . . Matter . | . . . Time . | . . . Total Robot Build Rating . | . . . Part Schematics Acquired . | . . . Parts Built . | . . . Matter . | . . . Time . | . . . Total Part Build Rating . | . . . Parts Repaired . | . . . Time . | . . . Parts Recycled . | . . . Recycled Matter . | . . . Retrieved Matter . | . . . Retrieved Components . | . . . Parts Scanalyzed . | . . . Part Schematics Acquired . | . . . Parts Damaged . | . . . Bothacking | -11 -10 -9 ------------ Run | Scr Mat Mat Used RIF Installer . | . . . Robots Hacked . | . . . Non-combat . | . . . Combat . | . . . Robot Hacks Applied . | . . . Relay Couplers Released . | . . . Robots Rewired . | . . . Allies Hacked . | . . . Hacks Repelled . | . . . Allies | -11 -10 -9 -------- Run | Scr Mat Mat Total Allies . | . . . Largest Group . | . . . Highest-Rated Group . | . . . Highest-Rated Ally . | . . . Total Orders . | . . . Ally Attacks . | . . . Total Damage . | . . . Kills . | . . . Allies Corrupted . | . . . Allies Melted . | . . . Intel | -11 -10 -9 ------- Run | Scr Mat Mat Robot Analysis Total . | . . . Derelict Logs Recovered . | . . . Drone Launches . | . . . Drone Recoveries . | . . . Exploration | -11 -10 -9 ------------- Run | Scr Mat Mat Turns Passed 1721 | 657 312 752 Spaces Moved 542 | 66 204 272 Core 96 | 24 . 72 Treads . | . . . Legs 434 | 42 204 188 Wheels 12 | . . 12 Hover . | . . . Flight . | . . . Fastest Speed 50 | 50 120 90 Average Speed 162 | 119 120 205 Slowest Speed 700 | 250 120 700 Overloaded Moves . | . . . Propulsion Burnouts . | . . . Robots Hopped . | . . . Cave-ins Triggered 1 | . . 1 Exploration Rate (%) 18 | 8 25 23 Regions Visited 2 Branch Regions . Pre-discovered Areas . | . . . Known Exits Taken . | . . . Unknown Exits Taken 2 | 1 1 . Scrap Searched . | . . . Spaces Dug . | . . . Terrain Destroyed 74 | . . 74 Melee . | . . . Projectile . | . . . AOE 74 | . . 74 Terrain Rammed . | . . . Walls Destroyed . | . . . Machines Disabled . | . . . Actions | -11 -10 -9 --------- Run | Scr Mat Mat Total 1216 | 643 234 339 Wait 561 | 561 . . Move 539 | 65 203 271 Hop . | . . . Pick Up 23 | 8 5 10 Fast Attach . | . . . Attach 15 | 6 3 6 Detach . | . . . Swap 5 | 2 . 3 Drop 5 | 1 . 4 Fire 48 | . 23 25 Melee . | . . . Ram 19 | . . 19 Kick . | . . . Crush . | . . . Escape Stasis 1 | . . 1 Rewire . | . . . Trap . | . . . Miscellaneous . | . . . Route ------- -11/Scrapyard -10/Materials -9/Materials History --------- Turn | Location | Event 2 | -11/Scrapyard | Met Revision 17 4 | -11/Scrapyard | Discovered new exit (range 15) 658 | -11/Scrapyard | Entered Materials 659 | -10/Materials | Build established: Mutant 952 | -10/Materials | Discovered new exit (range 16) 970 | -10/Materials | Entered another Materials area 970 | -9/Materials | Evolved 2 slots: Power x1, Utility x1 1611 | -9/Materials | Crushed by falling debris 1645 | -9/Materials | Lost 4 parts (2p2n) 1653 | -9/Materials | Core integrity fell below 50% 1691 | -9/Materials | Core integrity fell below 20% 1722 | -9/Materials | Destroyed by G-34 Mercenary with Small Laser Last Messages --------------- 01643_ Slammed into G-34 Mercenary. 01643_ U-05 Engineer lays Concrete. 01644_ U-05 Engineer builds a Wall. 01644_ U-05 Engineer lays Concrete. 01648_ Slammed into G-34 Mercenary. 01648_ U-05 Engineer lays Concrete. 01650_ Core Shielding destroyed. 01651_ U-05 Engineer lays Concrete. 01654_ Slammed into G-34 Mercenary. 01655_ U-05 Engineer lays Concrete. 01656_ System corrupted: Heat flow error (+136). 01659_ U-05 Engineer lays Concrete. 01659_ Slammed into G-34 Mercenary. 01660_ U-05 Engineer lays Concrete. 01665_ Slammed into G-34 Mercenary. 01676_ Destabilizing: System corrupted (+1). 01681_ Slammed into G-34 Mercenary. 01709_ Destabilizing: System corrupted (+1). 01714_ Slammed into G-34 Mercenary. 01722_ System corrupted: Energy discharge (-27). Map ----- +----------------------------------------------------+ | ??????# "T !#???????????????????????########?? | | ####?## "" #?????????#########?##### ??? | | ### "" # ????????# ?# # """"??? | | # #?????????# # # """""?# | | # ! #?????????# # # """"" # | | + ##+ ############????# !! + + """"" # | | "" # # #????# !! # # """"" # | | "" # #????# !! # # """"" # | | "" # T #?#??# ?# # """"" # | | # # #????# ?# # # | | #### ##+#############+######### ########## | | # # ?# # # #?? | | # # ?# + + #?? | | #+#######+#### # # ?# """ # # """#?? | | " ## # # # ?# """ # # """#?? | | " ## + # ## """ # # """#?? | | " ## """"" # ## # # #?? | | ## # """"" # ###+##### ####+###?? | | ## """"" # ### ##??# #????????? | | ## / # ######### ### ##### #### ###?? | | ## #######??## #?? | | [[## #????# + | | ######## ### ###### """" # | | ???#??#### ######## ## #######+##### """" #?? | | ????????# # # # % # """" #?? | | ??????#?# """"""" # ### @ # #?? | | ??????#?# """"""" / ### g # #?? | | ??????#?# """"""" # + # ? #?? | | ???????## """"""" ## ### " | # ??#?? | | ????????# """"""" ## #############+## ???? | | ?? ????## ## ##?? ?? ###+###### ???? | | ????#???# ## #?? """ ## ??????????????? | | ????????############ #?# """ #????????????????? | | ??????????? ?? ?? ? ### """ #? ??????????????? | | ???????????##?????####?# !#? #?????????????? | | ???????????????#???#?#?# """ #????? ??????????? | | ??????????????????#?#??# ""??? #????????????????? | | ??????????????????????## "?" ? +????????????????? | | ????????????#????????#?# ? ??? ?????????????????? | | ???????????????????#???###???????????????????????? | | ??????????????????????? ?????????????????????????? | | ?????????????????????????????????????????????????? | | ?????????????????????????????????????????????????? | | ?????????????????????????????????????????????????? | | ?????????????????????????????????????????????????? | | ?????????????????????????????????????????????????? | | ?????????????????????????????????????????????????? | | ?????????????????????????????????????????????????? | | ?????????????????????????????????????????????????? | | ?????????????????????????????????????????????????? | +----------------------------------------------------+ Best States ------------- Heat Dissipation 28 Energy Generation 15 Energy Capacity 250 Matter Stores 284 Matter Capacity 300 Sight Range 16 Terrain Scan Range 14 Terrain Scan Density 10 Core Shielding 20 Evasion (%) 50 Item Schematics ----------------- None Robot Schematics ------------------ None Fabricated ------------ Nothing Alien Tech Used ----------------- None Achievements -------------- None Challenges ------------ None Game ------ Seed AssembledCloakAmplifier Manual? 0 Play Time 00:16:39 Cumulative 18.2 hours Start 2020.12.26 @ 14:45:20 End 2020.12.27 @ 09:02:34 Sessions 3 Manual Loads 0 Difficulty Rogue Special Mode None Game No. 33 Rogue 33 Adventurer 0 Explorer 0 Win Type - Total 0 Types 0/0/0/0/0/0/0/0/0 Lore% 16 Gallery% 21 Achievement% 16 Wizard Run 0 Options --------- ASCII 0 Keyboard 0 Movement Numpad Keybinds 0 Fullscreen 1 Font 18/SmallcapsGlow Map View 76x50 Tactical HUD 1 Map Filters NONE Filters NONE Steam 1 RUN: 9b6b15ea-5923-4626-bb01-c6a394f6c631